fUST/lending_fUST_20251107
["ID","MTS","AMOUNT","RATE_DAILY","PERIOD"]
[393313774,1762455038944,-396.5413792,0.00015611,2]
[393313775,1762455038954,-1500.0,0.00015668,2]
[393313776,1762455038965,-1000.0,0.00015817,2]
[393313777,1762455038976,-1000.0,0.00015817,2]
[393313778,1762455038986,-1000.0,0.00015817,2]
[393313779,1762455038996,-1000.0,0.00015817,2]
[393313780,1762455039006,-923.09341047,0.00015817,2]
[393313781,1762455039016,-204.51116267,0.00015941,2]
[393313782,1762455039025,-316.41140771,0.00015957,2]
[393313783,1762455039034,-361.25142434,0.00015957,2]
[393313784,1762455039045,-194.32602764,0.0001596,2]
[393313785,1762455039058,-8528.77284989,0.00016053,2]
[393313786,1762455039072,-5828.81562136,0.00016053,2]
[393313865,1762455040367,-7875.74071712,0.00016053,2]
[393314002,1762455046165,-2145.99999995,0.00016053,2]
[393314010,1762455099679,2069.42740722,0.00014462,2]
[393314012,1762455291219,6435.38581144,0.0001446,2]
[393314013,1762455304344,596.32,0.00015087,3]
[393314014,1762455304594,1192.64,0.00016457,3]
[393314015,1762455315171,298.16,0.00015087,3]
[393314016,1762455315498,596.32,0.00016457,3]
[393314017,1762455326618,894.52,0.00015087,3]
[393314035,1762455571648,5630.96258501,0.00014458,2]
[393314036,1762455587821,153.45650044,0.00014458,2]
[393314037,1762455678539,500.0,0.00037251,60]
[393314038,1762455679062,500.0,0.00037251,60]
[393314039,1762455679440,500.0,0.00037251,60]
[393314040,1762455679812,500.0,0.00037251,60]
[393314041,1762455680224,500.0,0.00037251,60]
[393314042,1762455680622,500.0,0.00037251,60]
[393314043,1762455681001,500.0,0.00037251,60]
[393314044,1762455681390,500.0,0.00037251,60]
[393314045,1762455681789,500.0,0.00037251,60]
[393314046,1762455682184,500.0,0.00037251,60]
[393314047,1762455682577,500.0,0.00037251,60]
[393314048,1762455683028,500.0,0.00037251,60]
[393314049,1762455683430,500.0,0.00037251,60]
[393314050,1762455683816,500.0,0.00037251,60]
[393314051,1762455684350,500.0,0.00037251,60]
[393314052,1762455684769,500.0,0.00037251,120]
[393314053,1762455685127,500.0,0.00037251,120]
[393314054,1762455685993,500.0,0.00037251,120]
[393314055,1762455686394,500.0,0.00037251,120]
[393314056,1762455686765,510.623365,0.00037251,120]
[393314058,1762455700668,401.32474055,0.00014401,2]
[393314059,1762455702592,722.38453299,0.00014401,2]
[393314060,1762455704087,100000.034748,0.00037251,120]
[393314061,1762455704943,1282.9549306,0.00014401,2]
[393314062,1762455709218,726.30469205,0.00014386,2]
[393314064,1762455801915,4927.09226191,0.00014456,2]
[393314066,1762455959736,1478.617325,0.00013699,2]
[393314067,1762455982590,11499.98000077,0.0003725,20]
[393314068,1762455997368,377.99913244,0.00014264,2]
[393314069,1762455999241,210.20972775,0.00014264,2]
[393314070,1762456013355,22299.98,0.00032877,120]
[393314071,1762456028266,4311.20572918,0.00014455,2]
[393314082,1762456171602,165.38998701,0.00014264,2]
[393314083,1762456213157,30204.04453827,0.0003725,20]
[393314124,1762456231898,-1014.69703727,0.000145,2]
[393314131,1762456231952,-4783.07450521,0.000145,2]
[393314133,1762456231962,-150.0,0.00014514,2]
[393314135,1762456231972,-1200.0,0.00014551,2]
[393314137,1762456231981,-300.0,0.00014552,2]
[393314139,1762456231990,-300.0,0.00014552,2]
[393314141,1762456232000,-300.0,0.00014552,2]
[393314143,1762456232010,-300.0,0.00014552,2]
[393314145,1762456232019,-1200.0,0.00014553,2]
[393314147,1762456232028,-377.18549657,0.00014554,2]
[393314150,1762456232039,-2888.41145312,0.00014555,2]
[393314152,1762456232051,-1152.96700882,0.00014555,2]
[393314154,1762456232062,-45958.62153806,0.00014555,2]
[393314156,1762456232071,-500.0,0.00014555,2]
[393314158,1762456232081,-500.0,0.00014555,2]
[393314161,1762456232090,-500.0,0.00014555,2]
[393314165,1762456232109,-500.0,0.00014555,2]
[393314168,1762456232119,-462.11261111,0.00014555,2]
[393314172,1762456232131,-37.88738889,0.00014555,2]
[393314174,1762456232140,-500.0,0.00014555,2]
[393314177,1762456232150,-13.72780479,0.00014555,2]
[393314226,1762456238004,-1128.93,0.00014555,2]
[393314227,1762456238014,-486.27219521,0.00014555,2]
[393314228,1762456238023,-500.0,0.00014555,2]
[393314229,1762456238034,-500.0,0.00014555,2]
[393314230,1762456238043,-500.0,0.00014555,2]
[393314231,1762456238052,-500.0,0.00014555,2]
[393314232,1762456238062,-386.4978048,0.00014555,2]
[393314233,1762456238076,-113.5021952,0.00014555,2]
[393314234,1762456238085,-394.8778048,0.00014555,2]
[393314258,1762456239978,-105.1221952,0.00014555,2]
[393314259,1762456239988,-500.0,0.00014555,2]
[393314261,1762456239997,-500.0,0.00014555,2]
[393314263,1762456240007,-500.0,0.00014555,2]
[393314265,1762456240017,-608.95902503,0.00014555,2]
[393314267,1762456240029,-500.0,0.00014555,2]
[393314269,1762456240039,-500.0,0.00014555,2]
[393314270,1762456240048,-490.4311571,0.00014555,2]
[393314272,1762456240060,-9.5688429,0.00014555,2]
[393314274,1762456240070,-500.0,0.00014555,2]
[393314276,1762456240079,-500.0,0.00014555,2]
[393314278,1762456240089,-381.27507199,0.00014555,2]
[393314279,1762456240098,-500.0,0.00014555,2]
[393314281,1762456240108,-500.0,0.00014555,2]
[393314283,1762456240117,-500.0,0.00014555,2]
[393314285,1762456240126,-500.0,0.00014555,2]
[393314287,1762456240134,-252.29635195,0.00014555,2]
[393314289,1762456240144,-500.0,0.00014555,2]
[393314290,1762456240153,-500.0,0.00014555,2]
[393314292,1762456240163,-500.0,0.00014555,2]
[393314294,1762456240177,-500.0,0.00014555,2]
[393314296,1762456240186,-500.0,0.00014555,2]
[393314298,1762456240195,-500.0,0.00014555,2]
[393314300,1762456240205,-500.0,0.00014555,2]
[393314302,1762456240215,-500.0,0.00014555,2]
[393314303,1762456240224,-500.0,0.00014555,2]
[393314305,1762456240233,-500.0,0.00014555,2]
[393314307,1762456240242,-500.0,0.00014555,2]
[393314309,1762456240251,-500.0,0.00014555,2]
[393314311,1762456240261,-500.0,0.00014555,2]
[393314313,1762456240271,-500.0,0.00014555,2]
[393314314,1762456240280,-500.0,0.00014555,2]
[393314316,1762456240291,-500.0,0.00014555,2]
[393314318,1762456240302,-500.0,0.00014555,2]
[393314320,1762456240311,-429.14199125,0.00014555,2]
[393314322,1762456240323,-70.85800875,0.00014555,2]
[393314324,1762456240332,-202.35489928,0.00014555,2]
[393314325,1762456240343,-500.0,0.00014555,2]
[393314327,1762456240352,-500.0,0.00014555,2]
[393314329,1762456240362,-500.0,0.00014555,2]
[393314331,1762456240373,-500.0,0.00014555,2]
[393314333,1762456240383,-500.0,0.00014555,2]
[393314335,1762456240392,-500.0,0.00014555,2]
[393314337,1762456240401,-500.0,0.00014555,2]
[393314339,1762456240410,-500.0,0.00014555,2]
[393314341,1762456240419,-387.79203195,0.00014555,2]
[393314343,1762456240428,-500.0,0.00014555,2]
[393314344,1762456240437,-500.0,0.00014555,2]
[393314346,1762456240447,-500.0,0.00014555,2]
[393314348,1762456240456,-500.0,0.00014555,2]
[393314350,1762456240467,-500.0,0.00014555,2]
[393314353,1762456240479,-500.0,0.00014555,2]
[393314355,1762456240492,-499.99999999,0.00014555,2]
[393314357,1762456240503,-500.0,0.00014555,2]
[393314359,1762456240513,-500.0,0.00014555,2]
[393314360,1762456240522,-444.70609992,0.00014555,2]
[393314362,1762456240531,-500.0,0.00014555,2]
[393314364,1762456240541,-500.0,0.00014555,2]
[393314366,1762456240550,-500.0,0.00014555,2]
[393314368,1762456240560,-500.0,0.00014555,2]
[393314370,1762456240570,-500.0,0.00014555,2]
[393314372,1762456240579,-500.0,0.00014555,2]
[393314373,1762456240589,-500.0,0.00014555,2]
[393314375,1762456240599,-500.0,0.00014558,2]
[393314377,1762456240608,-500.0,0.00014562,2]
[393314379,1762456240618,-500.0,0.00014563,2]
[393314381,1762456240627,-500.0,0.00014563,2]
[393314383,1762456240637,-500.0,0.00014563,2]
[393314384,1762456240646,-500.0,0.00014564,2]
[393314386,1762456240656,-500.0,0.00014564,2]
[393314387,1762456240665,-500.0,0.00014564,2]
[393314389,1762456240675,-500.0,0.00014564,2]
[393314391,1762456240684,-193.951708,0.00014564,2]
[393314393,1762456240693,-302.10535272,0.00014564,2]
[393314395,1762456240702,-500.0,0.00014564,2]
[393314396,1762456240712,-500.0,0.00014564,2]
[393314398,1762456240721,-500.0,0.00014564,2]
[393314400,1762456240730,-500.0,0.00014564,2]
[393314402,1762456240739,-304.23220386,0.00014565,2]
[393314404,1762456240748,-500.0,0.00014565,2]
[393314405,1762456240757,-500.0,0.0001457,2]
[393314407,1762456240767,-500.0,0.00014572,2]
[393314409,1762456240776,-506.27760567,0.00014573,2]
[393314411,1762456240785,-500.0,0.00014573,2]
[393314413,1762456240795,-500.0,0.00014573,2]
[393314414,1762456240804,-500.0,0.00014573,2]
[393314416,1762456240813,-555.25171164,0.00014573,2]
[393314418,1762456240822,-500.0,0.00014573,2]
[393314420,1762456240831,-506.11649179,0.00014573,2]
[393314422,1762456240840,-501.72215712,0.00014573,2]
[393314424,1762456240850,-502.10980136,0.00014573,2]
[393314426,1762456240859,-500.0,0.00014573,2]
[393314427,1762456240868,-500.0,0.00014573,2]
[393314429,1762456240877,-500.0,0.00014573,2]
[393314431,1762456240887,-500.0,0.00014573,2]
[393314433,1762456240896,-500.0,0.00014573,2]
[393314435,1762456240905,-500.0,0.00014573,2]
[393314437,1762456240914,-500.0,0.00014573,2]
[393314438,1762456240923,-500.0,0.00014573,2]
[393314440,1762456240933,-500.0,0.00014599,2]
[393314442,1762456240943,-500.0,0.00014599,2]
[393314444,1762456240952,-1129.06,0.000146,2]
[393314446,1762456240961,-1129.06,0.000146,2]
[393314448,1762456240970,-1129.06,0.000146,2]
[393314450,1762456240980,-1129.06,0.000146,2]
[393314451,1762456240989,-1129.06,0.000147,2]
[393314453,1762456240998,-1129.06,0.000147,2]
[393314455,1762456241008,-1129.06,0.000147,2]
[393314457,1762456241017,-572.98098119,0.00014718,2]
[393314459,1762456241026,-1031.36576615,0.00014718,2]
[393314461,1762456241035,-1129.06,0.000148,2]
[393314463,1762456241044,-1129.06,0.000148,2]
[393314465,1762456241054,-1129.06,0.000148,2]
[393314466,1762456241063,-500.0,0.00014836,2]
[393314468,1762456241074,-1129.06,0.000149,2]
[393314470,1762456241084,-1129.06,0.000149,2]
[393314472,1762456241093,-1129.06,0.000149,2]
[393314474,1762456241103,-1129.06,0.000149,2]
[393314476,1762456241112,-47209.7364137,0.0001499,2]
[393314478,1762456241123,-7972.094,0.0001499,2]
[393314480,1762456241134,-744.68082744,0.0001499,2]
[393314482,1762456241149,-1688.95374303,0.0001499,2]
[393314601,1762456243017,-866.35794739,0.0001499,2]
[393314602,1762456243070,-322.36312694,0.0001499,2]
[393314609,1762456246543,-41195.8139415,0.0001499,2]
[393314610,1762456246553,-1129.06,0.00015,2]
[393314611,1762456246563,-1129.06,0.00015,2]
[393314612,1762456246573,-1129.06,0.00015,2]
[393314613,1762456246584,-562.15911718,0.00015068,2]
[393314614,1762456246594,-509.34390371,0.00015073,2]
[393314615,1762456246604,-500.0,0.00015073,2]
[393314616,1762456246614,-464.57363186,0.00015073,2]
[393314617,1762456246623,-500.0,0.00015073,2]
[393314618,1762456246632,-500.0,0.00015073,2]
[393314619,1762456246642,-501.28912964,0.00015073,2]
[393314620,1762456246651,-500.0,0.00015073,2]
[393314621,1762456246661,-500.0,0.00015073,2]
[393314622,1762456246671,-500.0,0.00015073,2]
[393314623,1762456246680,-500.0,0.00015073,2]
[393314624,1762456246689,-504.7902231,0.00015073,2]
[393314625,1762456246699,-500.0,0.00015073,2]
[393314626,1762456246709,-500.0,0.00015073,2]
[393314627,1762456246719,-500.0,0.00015073,2]
[393314628,1762456246728,-500.0,0.00015073,2]
[393314629,1762456246738,-500.0,0.00015073,2]
[393314630,1762456246748,-500.0,0.00015073,2]
[393314631,1762456246758,-500.0,0.00015073,2]
[393314632,1762456246768,-500.0,0.00015073,2]
[393314633,1762456246777,-500.0,0.00015073,2]
[393314634,1762456246786,-500.0,0.00015073,2]
[393314635,1762456246799,-500.0,0.00015073,2]
[393314636,1762456246812,-501.82660943,0.00015073,2]
[393314637,1762456246821,-500.0,0.00015073,2]
[393314638,1762456246831,-290.45169168,0.00015073,2]
[393314639,1762456246841,-500.0,0.00015073,2]
[393314640,1762456246850,-500.0,0.00015073,2]
[393314641,1762456246860,-500.0,0.00015073,2]
[393314642,1762456246869,-500.0,0.00015073,2]
[393314643,1762456246878,-501.8169885,0.00015073,2]
[393314644,1762456246887,-513.75490857,0.00015073,2]
[393314645,1762456246896,-500.0,0.00015073,2]
[393314646,1762456246905,-500.0,0.00015073,2]
[393314647,1762456246915,-500.0,0.00015073,2]
[393314648,1762456246924,-501.39056224,0.00015073,2]
[393314649,1762456246933,-500.0,0.00015073,2]
[393314650,1762456246942,-500.0,0.00015073,2]
[393314651,1762456246951,-500.0,0.00015073,2]
[393314652,1762456246961,-501.78778189,0.00015073,2]
[393314653,1762456246970,-500.0,0.00015073,2]
[393314654,1762456246979,-500.0,0.00015073,2]
[393314655,1762456246988,-176.35158614,0.00015073,2]
[393314656,1762456246997,-500.0,0.00015073,2]
[393314657,1762456247007,-500.0,0.00015073,2]
[393314658,1762456247016,-300.26120846,0.00015073,2]
[393314659,1762456247025,-500.0,0.00015073,2]
[393314660,1762456247034,-504.88759824,0.00015073,2]
[393314661,1762456247044,-500.0,0.00015073,2]
[393314662,1762456247053,-157.04594121,0.00015073,2]
[393314663,1762456247062,-500.0,0.00015073,2]
[393314664,1762456247072,-500.0,0.00015073,2]
[393314665,1762456247081,-1609.5471347,0.00015097,2]
[393314666,1762456247091,-72893.2946442,0.00015097,2]
[393314667,1762456247100,-3118.7687601,0.00015097,2]
[393314668,1762456247109,-167.2,0.000151,2]
[393314669,1762456247119,-167.2,0.000151,2]
[393314670,1762456247128,-151.0,0.000151,2]
[393314671,1762456247138,-1129.06,0.000151,2]
[393314672,1762456247148,-1129.06,0.000151,2]
[393314673,1762456247157,-1129.06,0.000151,2]
[393314674,1762456247168,-1129.06,0.000151,2]
[393314675,1762456247178,-1000.0,0.00015121,2]
[393314676,1762456247187,-1000.0,0.00015121,2]
[393314677,1762456247197,-1000.0,0.00015121,2]
[393314678,1762456247206,-1000.0,0.00015121,2]
[393314679,1762456247215,-1000.0,0.00015121,2]
[393314680,1762456247224,-1000.0,0.00015121,2]
[393314681,1762456247233,-500.0,0.00015121,2]
[393314682,1762456247243,-1000.0,0.00015121,2]
[393314683,1762456247252,-1000.0,0.00015121,2]
[393314684,1762456247261,-500.0,0.00015121,2]
[393314685,1762456247269,-716.6473636,0.00015183,2]
[393314686,1762456247279,-1289.96525449,0.00015183,2]
[393314687,1762456247289,-509.40983654,0.00015183,2]
[393314688,1762456247302,-151.0,0.000152,2]
[393314689,1762456247311,-1129.06,0.000152,2]
[393314690,1762456247320,-1129.06,0.000152,2]
[393314691,1762456247329,-1129.06,0.000152,2]
[393314692,1762456247343,-208.03,0.00015215,2]
[393314693,1762456247352,-1833.53913982,0.00015281,2]
[393314694,1762456247361,-1129.06,0.000153,2]
[393314695,1762456247372,-1129.06,0.000153,2]
[393314696,1762456247382,-1129.06,0.000153,2]
[393314697,1762456247391,-500.0,0.00015384,2]
[393314698,1762456247401,-1129.06,0.000154,2]
[393314699,1762456247411,-1129.06,0.000154,2]
[393314700,1762456247422,-1129.06,0.000154,2]
[393314701,1762456247431,-1129.06,0.000154,2]
[393314702,1762456247442,-1129.06,0.000155,2]
[393314703,1762456247451,-1129.06,0.000155,2]
[393314704,1762456247461,-1129.06,0.000155,2]
[393314705,1762456247471,-1129.06,0.000156,2]
[393314706,1762456247480,-1129.06,0.000156,2]
[393314707,1762456247490,-1129.06,0.000156,2]
[393314708,1762456247499,-502.56255375,0.00015621,2]
[393314709,1762456247509,-1004.77391435,0.00015621,2]
[393314710,1762456247518,-1000.0,0.00015621,2]
[393314711,1762456247528,-1000.0,0.00015621,2]
[393314712,1762456247537,-666.1647146,0.00015621,2]
[393314713,1762456247547,-1003.12894742,0.00015621,2]
[393314714,1762456247557,-159.17052715,0.00015621,2]
[393314715,1762456247567,-500.8632473,0.00015621,2]
[393314716,1762456247576,-1000.0,0.00015621,2]
[393314717,1762456247587,-1000.0,0.00015621,2]
[393314718,1762456247597,-1000.0,0.00015621,2]
[393314719,1762456247606,-500.0,0.00015621,2]
[393314720,1762456247616,-1000.0,0.00015621,2]
[393314721,1762456247625,-1000.0,0.00015621,2]
[393314722,1762456247634,-622.64154827,0.00015621,2]
[393314723,1762456247644,-1000.0,0.00015621,2]
[393314724,1762456247653,-1000.0,0.00015621,2]
[393314725,1762456247663,-1000.0,0.00015621,2]
[393314726,1762456247672,-1003.01551315,0.00015621,2]
[393314727,1762456247682,-1000.0,0.00015621,2]
[393314728,1762456247691,-502.73643182,0.00015621,2]
[393314729,1762456247702,-1000.0,0.00015621,2]
[393314730,1762456247711,-585.11880739,0.00015621,2]
[393314731,1762456247721,-1000.0,0.00015621,2]
[393314732,1762456247731,-426.73592237,0.00015621,2]
[393314733,1762456247740,-1000.0,0.00015621,2]
[393314734,1762456247750,-1000.0,0.00015621,2]
[393314735,1762456247759,-358.58403867,0.00015621,2]
[393314736,1762456247769,-1000.0,0.00015621,2]
[393314737,1762456247779,-1000.0,0.00015621,2]
[393314738,1762456247789,-1000.0,0.00015621,2]
[393314739,1762456247799,-518.34878664,0.00015621,2]
[393314740,1762456247809,-1000.0,0.00015621,2]
[393314741,1762456247820,-1000.0,0.00015621,2]
[393314742,1762456247830,-789.68480605,0.00015625,2]
[393314743,1762456247840,-2293.27156354,0.00015639,2]
[393314744,1762456247849,-500.0,0.00015658,2]
[393314745,1762456247858,-1500.0,0.00015668,2]
[393314746,1762456247868,-548.61399577,0.00015668,2]
[393314747,1762456247878,-1006.55581394,0.00015668,2]
[393314748,1762456247888,-1500.0,0.00015668,2]
[393314749,1762456247897,-1500.0,0.00015668,2]
[393314750,1762456247906,-1500.0,0.00015668,2]
[393314751,1762456247916,-1500.0,0.00015668,2]
[393314752,1762456247926,-1129.06,0.000157,2]
[393314753,1762456247935,-1129.06,0.000157,2]
[393314754,1762456247945,-1129.06,0.000157,2]
[393314755,1762456247954,-1129.06,0.000157,2]
[393314756,1762456247964,-1344.66633696,0.00015707,2]
[393314757,1762456247973,-1129.06,0.000158,2]
[393314758,1762456247983,-1129.06,0.000158,2]
[393314759,1762456247993,-1129.06,0.000158,2]
[393314760,1762456248002,-1129.06,0.000159,2]
[393314761,1762456248012,-1129.06,0.000159,2]
[393314762,1762456248022,-1129.06,0.000159,2]
[393314763,1762456248031,-500.0,0.00015932,2]
[393314764,1762456248040,-420.0,0.00015934,2]
[393314765,1762456248050,-420.0,0.00015934,2]
[393314766,1762456248060,-420.0,0.00015934,2]
[393314767,1762456248069,-420.0,0.00015934,2]
[393314768,1762456248079,-400.0,0.00015935,2]
[393314769,1762456248090,-1129.06,0.00016,2]
[393314770,1762456248100,-1129.06,0.00016,2]
[393314771,1762456248110,-1680.0,0.00016006,2]
[393314772,1762456248120,-2864.90490597,0.00016011,2]
[393314773,1762456248129,-500.0,0.00016053,2]
[393314774,1762456248139,-500.0,0.00016053,2]
[393314775,1762456248148,-500.0,0.00016053,2]
[393314776,1762456248158,-500.0,0.00016053,2]
[393314777,1762456248168,-3009.89293264,0.00016053,2]
[393314778,1762456248177,-244.37880189,0.00016062,2]
[393314779,1762456248187,-1500.0,0.00016168,2]
[393314780,1762456248196,-498.70558597,0.00016168,2]
[393314781,1762456248205,-1500.0,0.00016168,2]
[393314782,1762456248214,-1500.0,0.00016168,2]
[393314783,1762456248224,-500.0,0.00016168,2]
[393314784,1762456248234,-505.8823257,0.00016168,2]
[393314785,1762456248243,-1640.58707186,0.00016168,2]
[393314786,1762456248253,-1000.0,0.00016168,2]
[393314787,1762456248264,-1500.0,0.00016168,2]
[393314788,1762456248273,-718.45887154,0.00016168,2]
[393314789,1762456248283,-506.76636232,0.00016168,2]
[393314790,1762456248294,-921.56991186,0.00016168,2]
[393314791,1762456248308,-503.80245893,0.00016168,2]
[393314792,1762456248318,-616.39857661,0.00016168,2]
[393314793,1762456248329,-1500.0,0.00016168,2]
[393314794,1762456248342,-1123.77497345,0.00016168,2]
[393314795,1762456248352,-1530.88061363,0.00016168,2]
[393314796,1762456248362,-501.12742325,0.00016168,2]
[393314797,1762456248379,-501.89871753,0.00016168,2]
[393314798,1762456248392,-150.0,0.00016194,2]
[393314799,1762456248403,-500.0,0.00016206,2]
[393314800,1762456248413,-401.81211073,0.00016211,2]
[393314801,1762456248423,-401.67454916,0.00016211,2]
[393314802,1762456248433,-2000.0,0.00016216,2]
[393314803,1762456248443,-1500.0,0.00016216,2]
[393314804,1762456248453,-1162.70895661,0.00016216,2]
[393314805,1762456248463,-2000.0,0.00016216,2]
[393314806,1762456248473,-3583.23681802,0.00016254,2]
[393314807,1762456248482,-374.51161086,0.00016437,2]
[393314808,1762456248493,-500.0,0.00016437,2]
[393314809,1762456248503,-500.0,0.00016438,2]
[393314810,1762456248513,-500.0,0.00016438,2]
[393314811,1762456248524,-500.0,0.00016438,2]
[393314812,1762456248534,-500.0,0.00016438,2]
[393314813,1762456248544,-500.0,0.00016438,2]
[393314814,1762456248553,-500.0,0.00016438,2]
[393314815,1762456248562,-500.0,0.00016438,2]
[393314816,1762456248571,-500.0,0.00016438,2]
[393314817,1762456248581,-500.0,0.00016438,2]
[393314818,1762456248592,-500.0,0.00016438,2]
[393314819,1762456248601,-500.0,0.00016438,2]
[393314820,1762456248611,-500.0,0.00016438,2]
[393314821,1762456248620,-500.0,0.00016438,2]
[393314822,1762456248629,-500.0,0.00016438,2]
[393314823,1762456248638,-500.0,0.00016438,2]
[393314824,1762456248647,-500.0,0.00016438,2]
[393314825,1762456248657,-500.0,0.00016438,2]
[393314826,1762456248666,-446.44595205,0.00016438,2]
[393314827,1762456248675,-500.0,0.00016438,2]
[393314828,1762456248684,-500.0,0.00016438,2]
[393314829,1762456248693,-500.0,0.00016438,2]
[393314830,1762456248703,-500.0,0.00016438,2]
[393314831,1762456248711,-500.0,0.00016438,2]
[393314832,1762456248721,-500.0,0.00016438,2]
[393314833,1762456248730,-500.0,0.00016438,2]
[393314834,1762456248739,-500.0,0.00016438,2]
[393314835,1762456248748,-500.0,0.00016438,2]
[393314836,1762456248757,-500.0,0.00016438,2]
[393314837,1762456248766,-500.0,0.00016438,2]
[393314838,1762456248776,-500.0,0.00016438,2]
[393314839,1762456248785,-500.0,0.00016438,2]
[393314840,1762456248799,-500.0,0.00016438,2]
[393314841,1762456248808,-500.0,0.00016438,2]
[393314842,1762456248818,-500.0,0.00016438,2]
[393314843,1762456248828,-500.0,0.00016438,2]
[393314844,1762456248839,-500.0,0.00016438,2]
[393314845,1762456248848,-500.0,0.00016438,2]
[393314846,1762456248858,-500.0,0.00016438,2]
[393314847,1762456248867,-500.0,0.00016438,2]
[393314848,1762456248876,-500.0,0.00016438,2]
[393314849,1762456248886,-500.0,0.00016438,2]
[393314850,1762456248895,-500.0,0.00016438,2]
[393314851,1762456248904,-500.0,0.00016438,2]
[393314852,1762456248914,-450.0,0.00016438,2]
[393314853,1762456248923,-500.0,0.00016438,2]
[393314854,1762456248933,-500.0,0.00016438,2]
[393314855,1762456248942,-500.0,0.00016438,2]
[393314856,1762456248952,-500.0,0.00016438,2]
[393314857,1762456248961,-500.0,0.00016438,2]
[393314858,1762456248971,-500.0,0.00016438,2]
[393314859,1762456248980,-500.0,0.00016438,2]
[393314860,1762456248989,-500.0,0.00016438,2]
[393314861,1762456248998,-500.0,0.00016438,2]
[393314862,1762456249008,-500.0,0.00016438,2]
[393314863,1762456249018,-500.0,0.00016438,2]
[393314864,1762456249027,-500.0,0.00016438,2]
[393314865,1762456249036,-500.0,0.00016438,2]
[393314866,1762456249045,-500.0,0.00016438,2]
[393314867,1762456249054,-500.0,0.00016438,2]
[393314868,1762456249063,-500.0,0.00016438,2]
[393314869,1762456249072,-500.0,0.00016438,2]
[393314870,1762456249081,-153.131559,0.00016438,2]
[393314871,1762456249091,-332.0,0.00016457,2]
[393314872,1762456249101,-332.0,0.00016457,2]
[393314873,1762456249110,-332.0,0.00016457,2]
[393314874,1762456249120,-153.0,0.00016457,2]
[393314875,1762456249215,-153.0,0.00016457,2]
[393314876,1762456249224,-153.0,0.00016457,2]
[393314877,1762456249234,-153.0,0.00016457,2]
[393314878,1762456249243,-153.0,0.00016457,2]
[393314879,1762456249253,-332.0,0.00016457,2]
[393314880,1762456249262,-332.0,0.00016457,2]
[393314881,1762456249271,-332.0,0.00016457,2]
[393314882,1762456249281,-332.0,0.00016457,2]
[393314883,1762456249291,-332.0,0.00016457,2]
[393314884,1762456249306,-332.0,0.00016457,2]
[393314885,1762456249315,-332.0,0.00016457,2]
[393314886,1762456249326,-332.0,0.00016457,2]
[393314887,1762456249335,-332.0,0.00016457,2]
[393314888,1762456249347,-332.0,0.00016457,2]
[393314889,1762456249357,-332.0,0.00016457,2]
[393314890,1762456249367,-332.0,0.00016457,2]
[393314891,1762456249377,-332.0,0.00016457,2]
[393314892,1762456249386,-185.57253807,0.00016457,2]
[393314893,1762456249396,-153.0,0.00016457,2]
[393314894,1762456249405,-153.0,0.00016457,2]
[393314895,1762456249414,-153.0,0.00016457,2]
[393314896,1762456249424,-153.0,0.00016457,2]